bitfinex/quotes_BTCUSD_20250523
["timestamp","ask_amount","ask_price","bid_price","bid_amount"]
[1747964110451,1.29571132,111310.0,111300.0,0.65707242]
[1747964110702,1.01976478,111310.0,111300.0,0.65707242]
[1747964110916,1.02176478,111310.0,111300.0,0.65707242]
[1747964112379,0.33576478,111310.0,111300.0,0.65707242]
[1747964115938,0.61071132,111310.0,111300.0,0.65711242]
[1747964116152,0.71175013,111310.0,111300.0,0.38783242]
[1747964116369,0.71175013,111310.0,111300.0,0.26943242]
[1747964116574,0.63071132,111310.0,111300.0,0.26943242]
[1747964116779,0.62771132,111310.0,111300.0,0.26943242]
[1747964116983,0.63171132,111310.0,111300.0,0.26943242]
[1747964117192,0.62171132,111310.0,111300.0,0.26943242]
[1747964117607,0.61971132,111310.0,111300.0,0.26943242]
[1747964118017,0.34676478,111310.0,111300.0,0.26943242]
[1747964118221,0.33476478,111310.0,111300.0,0.26943242]
[1747964118456,0.33576478,111310.0,111300.0,0.26943242]
[1747964118897,0.34176478,111310.0,111300.0,0.27043242]
[1747964119306,0.33076478,111310.0,111300.0,0.26943242]
[1747964119728,0.33076478,111310.0,111300.0,0.27043242]
[1747964119729,0.33676478,111310.0,111300.0,0.27043242]
[1747964121405,0.31306478,111310.0,111300.0,0.27043242]
[1747964121642,0.27522393,111310.0,111300.0,0.61043242]
[1747964121865,0.18567837,111310.0,111300.0,5.16130842]
[1747964122780,0.18267837,111310.0,111300.0,5.16030842]
[1747964123000,0.17967837,111310.0,111300.0,5.16030842]
[1747964123205,0.18267837,111310.0,111300.0,5.16030842]
[1747964124283,0.18467837,111310.0,111300.0,5.16030842]
[1747964124495,0.17967837,111310.0,111300.0,5.16030842]
[1747964124935,0.18267837,111310.0,111300.0,5.16030842]
[1747964126718,0.18267837,111310.0,111300.0,4.89102842]
[1747964126921,0.18267837,111310.0,111300.0,5.16030842]
[1747964127140,0.18267837,111310.0,111300.0,1.06833242]
[1747964127345,0.18267837,111310.0,111300.0,0.84473242]
[1747964127555,0.18267837,111310.0,111300.0,0.77463242]
[1747964128121,0.18267837,111310.0,111300.0,0.60943242]
[1747964128422,0.18267837,111310.0,111300.0,0.99715242]
[1747964129926,0.18267837,111310.0,111300.0,1.04455242]
[1747964131282,0.18067837,111310.0,111300.0,1.04455242]
[1747964131485,0.17967837,111310.0,111300.0,5.54882842]
[1747964133847,0.17967837,111310.0,111300.0,5.52502842]
[1747964134132,0.17967837,111310.0,111300.0,1.14985242]
[1747964134342,0.17967837,111310.0,111300.0,0.99715242]
[1747964134750,0.17967837,111310.0,111300.0,2.18161242]
[1747964135579,0.17967837,111310.0,111300.0,2.20571242]
[1747964135789,0.17967837,111310.0,111300.0,2.22841242]
[1747964141299,0.17967837,111310.0,111300.0,2.41709165]
[1747964141485,0.17967837,111310.0,111300.0,2.22841242]
[1747964142384,0.17967837,111310.0,111300.0,2.24270839]
[1747964142593,0.17967837,111310.0,111300.0,2.29270839]
[1747964143860,0.17967837,111310.0,111300.0,2.02346839]
[1747964144074,0.17967837,111310.0,111300.0,1.88246839]
[1747964144292,0.17967837,111310.0,111300.0,1.46460839]
[1747964144437,0.20367837,111310.0,111300.0,1.12460839]
[1747964144642,0.20367837,111310.0,111300.0,1.46460839]
[1747964144844,0.22677837,111310.0,111300.0,1.18107242]
[1747964145046,0.31632393,111310.0,111300.0,0.84107242]
[1747964145263,0.38847726,111310.0,111300.0,1.06031242]
[1747964146549,0.38847726,111310.0,111300.0,0.79107242]
[1747964146779,0.40301811,111310.0,111300.0,0.79107242]
[1747964146994,0.40301811,111310.0,111300.0,0.38787242]
[1747964147203,0.68796465,111310.0,111300.0,0.00015242]
[1747964147437,0.69796465,111310.0,111300.0,0.00015242]
[1747964147883,0.69796465,111310.0,111280.0,0.27124]
[1747964147884,0.26588115,111290.0,111280.0,0.002]
[1747964148122,0.35542671,111290.0,111280.0,0.00215268]
[1747964149603,0.35742671,111290.0,111280.0,0.00215268]
[1747964150465,0.34742671,111290.0,111280.0,0.00215268]
[1747964150667,0.35742671,111290.0,111280.0,0.00215268]
[1747964150869,0.33742671,111290.0,111280.0,0.00215268]
[1747964151080,0.33842671,111290.0,111280.0,0.00215268]
[1747964151321,0.35296756,111290.0,111280.0,0.67607268]
[1747964154247,0.35296756,111290.0,111280.0,0.40679268]
[1747964154452,0.35296756,111290.0,111280.0,0.67611268]
[1747964154661,0.35285348,111290.0,111280.0,0.40679268]
[1747964154865,0.35285348,111290.0,111280.0,0.67611268]
[1747964156585,0.35285348,111290.0,111280.0,0.40679268]
[1747964156832,0.35285348,111290.0,111280.0,0.67611268]
[1747964157457,0.62780002,111290.0,111280.0,0.40679268]
[1747964157673,0.63780002,111290.0,111280.0,0.67611268]
[1747964158035,0.63780002,111290.0,111280.0,0.27147268]
[1747964158236,0.62780002,111290.0,111280.0,0.27147268]
[1747964158441,0.36285348,111290.0,111280.0,0.27147268]
[1747964158636,0.35285348,111290.0,111280.0,0.27147268]
[1747964161287,0.29011263,111290.0,111280.0,0.27147268]
[1747964161921,0.29011263,111290.0,111280.0,0.27141836]
[1747964162124,0.29011263,111290.0,111280.0,0.61141836]
[1747964166033,0.37317834,111290.0,111280.0,0.00209836]
[1747964166252,0.35383705,111290.0,111280.0,0.27141836]
[1747964167120,0.35375348,111290.0,111280.0,0.27133479]
[1747964167548,0.35359137,111290.0,111280.0,0.27133479]
[1747964169534,0.35259137,111290.0,111280.0,0.27133479]
[1747964169733,0.35059137,111290.0,111280.0,0.27133479]
[1747964169972,0.35259137,111290.0,111280.0,0.27133479]
[1747964170193,0.35559137,111290.0,111280.0,0.27133479]
[1747964172092,0.35559137,111290.0,111280.0,0.00201479]
[1747964172297,0.33059137,111290.0,111280.0,0.67605479]
[1747964172505,0.17974296,111270.0,111260.0,0.0479]
[1747964172726,0.17974296,111270.0,111260.0,4.956896]
[1747964173725,0.17974296,111270.0,111260.0,5.227216]
[1747964174112,0.17956284,111270.0,111260.0,5.228216]
[1747964174514,0.17956284,111270.0,111260.0,5.568216]
[1747964175137,0.17956284,111270.0,111260.0,5.956056]
[1747964178609,0.17956284,111270.0,111260.0,1.77116]
[1747964178811,0.2911084,111270.0,111260.0,0.79456]
[1747964179011,0.2911084,111270.0,111260.0,1.07227825]
[1747964179493,0.2911084,111270.0,111260.0,0.80295825]
[1747964179773,0.3146084,111270.0,111260.0,1.06979825]
[1747964181948,0.32914925,111270.0,111260.0,0.39823825]
[1747964182097,0.32914925,111270.0,111260.0,1.06983825]
[1747964183630,0.32914925,111270.0,111260.0,0.39823825]
[1747964183830,0.32914925,111270.0,111260.0,1.06987825]
[1747964185263,0.2911084,111270.0,111260.0,1.06987825]
[1747964186615,0.2691084,111270.0,111260.0,1.06987825]
[1747964186988,0.2917084,111270.0,111260.0,1.06987825]
[1747964187231,0.32874925,111270.0,111260.0,1.06987825]
[1747964189942,0.30624925,111270.0,111260.0,1.06987825]
[1747964191557,0.30624925,111270.0,111260.0,0.68203825]
[1747964192466,0.2917084,111270.0,111260.0,0.68203825]
[1747964193439,0.28120883,111270.0,111260.0,0.68203825]
[1747964194092,0.25860883,111270.0,111260.0,1.02203825]
[1747964194925,0.25860883,111270.0,111260.0,1.02207825]
[1747964197131,0.25860883,111270.0,111260.0,1.04437825]
[1747964197336,0.25860883,111270.0,111260.0,1.03598]
[1747964199720,0.25860883,111270.0,111260.0,0.55223288]
[1747964199923,0.25843671,111270.0,111260.0,0.69398]
[1747964200430,0.25843671,111270.0,111260.0,0.67168]
[1747964200853,0.25843671,111270.0,111260.0,0.69418]
[1747964201068,0.16889115,111270.0,111260.0,5.220856]
[1747964202366,0.16889115,111270.0,111260.0,5.560856]
[1747964202574,0.18872721,111280.0,111270.0,0.022]
[1747964202790,0.00903627,111290.0,111280.0,0.56402681]
[1747964203003,5.082e-05,111290.0,111280.0,5.45416632]
[1747964203449,0.002,111310.0,111300.0,0.59094755]
[1747964203665,0.002,111310.0,111300.0,6.24428911]
[1747964204301,0.21761273,111310.0,111300.0,6.2406166]
[1747964204517,0.01098327,111310.0,111300.0,6.25858508]
[1747964204725,0.02895021,111310.0,111300.0,6.25858508]
[1747964204937,0.01996662,111310.0,111300.0,6.25858508]
[1747964205130,0.02895005,111310.0,111300.0,6.25958508]
[1747964205524,0.03793364,111310.0,111300.0,6.25958508]
[1747964205730,0.03793364,111310.0,111300.0,6.24528911]
[1747964205937,0.02895005,111310.0,111300.0,6.24528911]
[1747964206686,0.02895005,111310.0,111300.0,6.24628911]
[1747964208619,0.01996662,111310.0,111300.0,6.24628911]
[1747964208995,0.02895005,111310.0,111300.0,6.24628911]
[1747964209196,0.02895005,111310.0,111300.0,6.25695338]
[1747964209407,0.01996662,111310.0,111300.0,6.25695338]
[1747964210624,0.01098327,111310.0,111300.0,6.25695338]
[1747964210828,0.01098327,111310.0,111300.0,6.26050813]
[1747964210829,0.002,111310.0,111300.0,6.26050813]
[1747964211265,0.002,111310.0,111300.0,6.27504898]
[1747964212085,0.03792726,111330.0,111320.0,0.59221058]
[1747964212249,0.21772599,111330.0,111320.0,5.4463296]
[1747964212477,0.22670821,111330.0,111320.0,5.46429492]
[1747964212640,0.04706212,111330.0,111320.0,5.47327746]
[1747964213269,0.22670821,111330.0,111320.0,5.47327746]
[1747964213483,0.22670894,111330.0,111320.0,5.47327746]
[1747964213891,0.02011619,111330.0,111320.0,5.47327746]
[1747964214064,0.02909833,111330.0,111320.0,5.47327746]
[1747964214639,0.02011619,111330.0,111320.0,5.47427746]
[1747964214893,0.02909833,111330.0,111320.0,5.47427746]
[1747964215097,0.21772672,111330.0,111320.0,5.42936379]
[1747964215271,0.20874507,111330.0,111320.0,5.44932977]
[1747964215471,0.20874507,111330.0,111320.0,5.46729541]
[1747964215878,0.02011668,111330.0,111320.0,5.47627803]
[1747964216076,0.20874507,111330.0,111320.0,5.47627754]
[1747964216478,0.20874507,111330.0,111320.0,5.467295]
[1747964216683,0.02011668,111330.0,111320.0,5.467295]
[1747964216882,0.20874507,111330.0,111320.0,5.467295]
[1747964217340,0.00215264,111330.0,111320.0,5.47627754]
[1747964217617,0.01113429,111330.0,111320.0,5.47627754]
[1747964217767,0.02909833,111330.0,111320.0,5.47627754]
[1747964218821,0.02909833,111330.0,111320.0,5.467295]
[1747964218822,0.02011619,111330.0,111320.0,5.467295]
[1747964219029,0.03808039,111330.0,111320.0,5.46729508]
[1747964219233,0.03808031,111330.0,111320.0,5.46729508]
[1747964219370,0.2177264,111330.0,111320.0,5.46729508]
[1747964219588,0.22670862,111330.0,111320.0,5.4762777]
[1747964219769,0.22670927,111330.0,111320.0,5.4762777]
[1747964219969,0.21772737,111330.0,111320.0,5.4762777]
[1747964220170,0.20874539,111330.0,111320.0,5.46729508]
[1747964220369,0.02011668,111330.0,111320.0,5.46729508]
[1747964220570,0.0290989,111330.0,111320.0,5.47627762]
[1747964220767,0.20874499,111330.0,111320.0,5.46729508]
[1747964221433,0.20874499,111330.0,111320.0,5.45831238]
[1747964221936,0.0290989,111330.0,111320.0,5.467295]
[1747964222138,0.01113429,111330.0,111320.0,5.47627754]
[1747964222375,0.02011611,111330.0,111320.0,5.47627754]
[1747964222807,0.01113429,111330.0,111320.0,5.47627754]
[1747964223017,0.02011619,111330.0,111320.0,5.47627754]
[1747964223624,0.20874426,111330.0,111320.0,4.98242156]
[1747964223759,0.20874426,111330.0,111320.0,5.24022491]
[1747964223760,0.19976285,111330.0,111320.0,5.24022491]
[1747964223961,0.19976285,111330.0,111320.0,5.41988714]
[1747964224141,0.19976285,111330.0,111320.0,5.44358714]
[1747964224339,0.19976285,111330.0,111320.0,5.46155328]
[1747964224542,0.19976285,111330.0,111320.0,5.47053623]
[1747964224756,0.19976285,111330.0,111320.0,5.48850147]
[1747964224976,0.01113438,111330.0,111320.0,5.48850147]
[1747964225212,0.02909825,111330.0,111320.0,5.48850147]
[1747964225839,0.03808039,111330.0,111320.0,5.21934147]
[1747964226054,0.03808039,111330.0,111320.0,5.48850147]
[1747964226275,0.03808039,111330.0,111320.0,5.88918147]
[1747964227125,0.03808039,111330.0,111320.0,5.89275714]
[1747964227343,0.21772713,111330.0,111320.0,5.8747919]
[1747964227546,0.19976317,111330.0,111320.0,5.26217502]
[1747964227748,0.19976317,111330.0,111320.0,5.53133502]
[1747964228376,0.19976317,111330.0,111320.0,5.71099725]
[1747964228595,0.01113429,111330.0,111320.0,5.8501896]
[1747964228797,0.02011619,111330.0,111320.0,5.86815492]
[1747964229003,0.03808031,111330.0,111320.0,5.86815492]
[1747964229669,0.03808031,111330.0,111320.0,5.85837394]
[1747964230331,0.02011611,111330.0,111320.0,5.88237394]
[1747964230748,0.02011611,111330.0,111320.0,5.86815492]
[1747964231126,0.02909801,111330.0,111320.0,6.25567492]
[1747964231760,0.03808015,111330.0,111320.0,6.25567492]
[1747964231915,0.03808015,111330.0,111320.0,6.23167492]
[1747964232111,0.03808015,111330.0,111320.0,5.56183492]
[1747964232316,0.03808015,111330.0,111320.0,6.23163492]
[1747964232518,0.03808007,111330.0,111320.0,6.23163492]
[1747964232696,0.04706221,111330.0,111320.0,6.23163492]
[1747964232903,0.03808056,111330.0,111320.0,6.20973492]
[1747964233133,0.01113446,111330.0,111320.0,6.20973492]
[1747964233338,0.02011603,111330.0,111320.0,6.25473492]
[1747964233562,0.02909801,111330.0,111320.0,6.28332812]
[1747964233778,0.02011603,111330.0,111320.0,6.28332812]
[1747964234192,0.00215264,111330.0,111320.0,6.28332812]
[1747964235234,0.01113438,111330.0,111320.0,6.28332812]
[1747964235368,0.00215264,111330.0,111320.0,6.25473492]
[1747964235566,0.01113429,111330.0,111320.0,6.25473492]
[1747964235974,0.02011611,111330.0,111320.0,6.25473492]
[1747964236232,0.02909817,111330.0,111320.0,6.23303508]
[1747964236437,0.02909817,111330.0,111320.0,6.24201762]
[1747964236896,0.19976293,111330.0,111320.0,6.1827869]
[1747964237097,0.19976293,111330.0,111320.0,6.20973541]
[1747964237274,0.19078087,111330.0,111320.0,5.99414156]
[1747964237509,0.21398087,111330.0,111320.0,5.904596]
[1747964238444,0.23608087,111330.0,111320.0,5.904596]
[1747964238874,0.00215264,111330.0,111320.0,6.1022242]
[1747964239094,0.00215264,111330.0,111320.0,6.20973508]
[1747964239296,0.01113421,111330.0,111320.0,6.23263508]
[1747964239653,0.02011603,111330.0,111320.0,6.25453508]
[1747964240201,0.02011603,111330.0,111320.0,6.28320539]
[1747964240489,0.03808015,111330.0,111320.0,5.99218539]
[1747964240668,0.03808015,111330.0,111320.0,6.23840539]
[1747964240842,0.02909801,111330.0,111320.0,6.23840539]
[1747964241255,0.02011603,111330.0,111320.0,6.23840539]
[1747964241411,0.02909801,111330.0,111320.0,6.23840539]
[1747964242177,0.02011603,111330.0,111320.0,6.23840539]
[1747964242509,0.02909801,111330.0,111320.0,6.23840539]
[1747964242846,0.02909801,111330.0,111320.0,6.26534039]
[1747964244159,0.02011603,111330.0,111320.0,6.26534039]
[1747964244361,0.02909793,111330.0,111320.0,6.26534039]
[1747964245005,0.03807999,111330.0,111320.0,6.26534039]
[1747964245203,0.02909793,111330.0,111320.0,6.26534039]
[1747964245408,0.07339793,111330.0,111320.0,5.59554039]
[1747964245567,0.24406277,111330.0,111320.0,5.88288665]
[1747964245774,0.24406277,111330.0,111320.0,6.1609896]
[1747964245983,0.24406277,111330.0,111320.0,5.91029001]
[1747964246183,0.24406277,111330.0,111320.0,5.62336131]
[1747964246389,0.23508087,111330.0,111320.0,5.62336131]
[1747964246723,0.23508087,111330.0,111320.0,5.594691]
[1747964246923,0.23508087,111330.0,111320.0,5.77435323]
[1747964247120,0.23508087,111330.0,111320.0,5.594691]
[1747964247427,0.23508087,111330.0,111320.0,5.79231912]
[1747964247823,0.23508087,111330.0,111320.0,5.78333626]
[1747964248077,0.23508087,111330.0,111320.0,6.12333626]
[1747964248265,0.22609873,111330.0,111320.0,5.934691]
[1747964248491,0.22609873,111330.0,111320.0,1.46288]
[1747964249027,0.22609873,111330.0,111320.0,1.18818]
[1747964249422,0.22609873,111330.0,111320.0,0.79436]
[1747964249668,0.2666718,111330.0,111320.0,1.06348]
[1747964250016,0.22609873,111330.0,111320.0,1.07423864]
[1747964250775,0.22609873,111330.0,111320.0,1.41423864]
[1747964250999,0.31564429,111330.0,111320.0,0.79436]
[1747964251197,0.31564429,111330.0,111320.0,1.06348]
[1747964251613,0.31564429,111330.0,111320.0,1.40348]
[1747964251847,0.31564429,111330.0,111320.0,1.40148]
[1747964252810,0.31564429,111330.0,111320.0,0.72752]
[1747964253039,0.31564429,111330.0,111320.0,1.40056]
[1747964253242,0.31664429,111330.0,111320.0,1.40056]
[1747964254732,0.31664429,111330.0,111320.0,0.7914]
[1747964254733,0.32616393,111330.0,111320.0,0.7914]
[1747964254934,0.33118514,111330.0,111320.0,0.7914]
[1747964255139,0.33118514,111330.0,111320.0,1.06056]
[1747964256363,0.33018514,111330.0,111320.0,0.7914]
[1747964256610,0.33018514,111330.0,111320.0,1.06056]
[1747964256812,0.33618514,111330.0,111320.0,1.06056]
[1747964260688,0.32164429,111330.0,111320.0,1.06056]
[1747964263385,0.32164429,111330.0,111320.0,1.0606]
[1747964263626,0.33618514,111330.0,111320.0,1.0606]
[1747964264070,0.33605405,111330.0,111320.0,1.0606]
[1747964266197,0.33605405,111330.0,111320.0,1.06068]
[1747964270130,0.33605405,111330.0,111320.0,0.67316]
[1747964271728,0.25678648,111310.0,111300.0,0.38768]
[1747964271947,0.34633204,111310.0,111300.0,1.05704]
[1747964276571,0.34833204,111310.0,111300.0,1.05704]
[1747964277176,0.35033204,111310.0,111300.0,1.05704]
[1747964280478,0.31389119,111310.0,111300.0,1.39704]
[1747964280682,0.29119119,111310.0,111300.0,4.55944]
[1747964280903,0.20164563,111310.0,111300.0,4.60504]
[1747964281312,0.20164563,111310.0,111300.0,4.46584]
[1747964281539,0.20164563,111310.0,111300.0,1.39704]
[1747964282164,0.20164563,111310.0,111300.0,1.40779864]
[1747964282369,0.20164563,111310.0,111300.0,1.43049864]
[1747964282584,0.20164563,111310.0,111300.0,1.45189864]
[1747964283246,0.20164563,111310.0,111300.0,5.95617464]
[1747964283824,0.20164563,111310.0,111300.0,2.82209864]
[1747964284036,0.20164563,111310.0,111300.0,1.40783864]
[1747964284423,0.20164563,111310.0,111300.0,1.41146485]
[1747964284622,0.20164563,111310.0,111300.0,5.93874085]
[1747964285315,0.20164563,111310.0,111300.0,6.13993536]
[1747964285494,0.20164563,111310.0,111300.0,5.96024085]
[1747964286101,0.20164563,111310.0,111300.0,6.14891992]
[1747964286308,0.01298327,111310.0,111300.0,6.16688848]
[1747964286507,0.01298327,111310.0,111300.0,6.25643404]
[1747964286508,0.004,111310.0,111300.0,6.25643404]
[1747964287285,0.004,111310.0,111300.0,6.24208919]
[1747964287489,0.002,111310.0,111300.0,6.24208919]
[1747964287899,0.04491359,111320.0,111310.0,0.59192914]
[1747964288103,0.04491359,111320.0,111310.0,5.1857507]
[1747964289118,0.19065165,111330.0,111320.0,0.58352788]
[1747964289266,0.19963371,111330.0,111320.0,5.35704396]
[1747964289490,0.19963371,111330.0,111320.0,5.34806118]
[1747964289719,0.19065165,111330.0,111320.0,5.33907823]
[1747964289922,0.18166935,111330.0,111320.0,5.159416]
[1747964290081,0.18166935,111330.0,111320.0,5.34806126]
[1747964290295,0.18366935,111330.0,111320.0,5.3713428]
[1747964290500,0.18366935,111330.0,111320.0,5.36236002]
[1747964290743,0.18366935,111330.0,111320.0,5.35337699]
[1747964290896,0.19265157,111330.0,111320.0,5.46088852]
[1747964291101,0.21261585,111330.0,111320.0,5.47885384]
[1747964291476,0.21261585,111330.0,111320.0,5.478854]
[1747964291611,0.21261585,111330.0,111320.0,5.45190566]
[1747964291813,0.21261585,111330.0,111320.0,5.46987147]
[1747964292043,0.20363387,111330.0,111320.0,5.45190566]
[1747964292459,0.20363387,111330.0,111320.0,5.46088869]
[1747964292607,0.20363387,111330.0,111320.0,5.46987147]
[1747964292813,0.20363387,111330.0,111320.0,5.46088869]
[1747964293643,0.00602155,111330.0,111320.0,5.48783639]
[1747964293846,0.01500329,111330.0,111320.0,5.48783639]
[1747964294528,0.04194955,111330.0,111320.0,5.45557247]
[1747964294731,0.201632,111330.0,111320.0,5.24896156]
[1747964294890,0.201632,111330.0,111320.0,5.24746156]
[1747964295300,0.199632,111330.0,111320.0,4.90746156]
[1747964295513,0.199632,111330.0,111320.0,5.0961069]
[1747964295733,0.199632,111330.0,111320.0,5.12477514]
[1747964295947,0.01989252,111330.0,111320.0,5.13375768]
[1747964296141,0.01989203,111330.0,111320.0,5.13375768]
[1747964296353,0.02887417,111330.0,111320.0,5.13375768]
[1747964297414,0.02887417,111330.0,111320.0,5.12305525]
[1747964298019,0.00192848,111330.0,111320.0,5.12305525]
[1747964298357,0.01091005,111330.0,111320.0,5.12305525]
[1747964298537,0.01989179,111330.0,111320.0,5.12305525]
[1747964298764,0.02887377,111330.0,111320.0,5.12305525]
[1747964298966,0.20851986,111330.0,111320.0,5.13732516]
[1747964299147,0.03785583,111330.0,111320.0,5.13732516]
[1747964299321,0.04683797,111330.0,111320.0,5.13832516]
[1747964299526,0.04683797,111330.0,111320.0,5.13932516]
[1747964299793,0.03785583,111330.0,111320.0,5.13932516]
[1747964300303,0.03785583,111330.0,111320.0,5.12505525]
[1747964301884,0.02887369,111330.0,111320.0,5.12505525]
[1747964302079,0.00192848,111330.0,111320.0,5.12505525]
[1747964302322,0.00192848,111330.0,111320.0,5.13574508]
[1747964302531,0.00179839,111330.0,111320.0,5.13574508]
[1747964303142,0.19070058,111350.0,111340.0,0.24907347]
[1747964303143,0.002,111350.0,111340.0,0.24907347]
[1747964303281,0.01111711,111350.0,111340.0,5.51289503]
[1747964303487,0.02907759,111350.0,111340.0,5.51289503]
[1747964303890,0.03805812,111350.0,111340.0,5.51289503]
[1747964304493,0.02907759,111350.0,111340.0,5.55051486]
[1747964304870,0.03107759,111350.0,111340.0,5.89051486]
[1747964305075,0.03107751,111350.0,111340.0,5.89051486]
[1747964305448,0.04005804,111350.0,111340.0,5.87982503]
[1747964305860,0.04205795,111350.0,111340.0,5.87982503]
[1747964306059,0.04205804,111350.0,111340.0,5.87982503]
[1747964306267,0.03805804,111350.0,111340.0,5.87982503]
[1747964306474,0.03905804,111350.0,111340.0,5.87982503]
[1747964307073,0.03905804,111350.0,111340.0,5.89409494]
[1747964307425,0.20969232,111350.0,111340.0,5.88507401]
[1747964307638,0.20969232,111350.0,111340.0,5.78488147]
[1747964307849,0.23543151,111350.0,111340.0,2.34190991]
[1747964308063,0.23543151,111350.0,111340.0,1.03708991]
[1747964308287,0.3490878,111350.0,111340.0,1.07170991]
[1747964308495,0.3971304,111350.0,111340.0,1.41170991]
[1747964308954,0.3971304,111350.0,111340.0,1.39744]
[1747964309375,0.3971304,111350.0,111340.0,1.05744]
[1747964309787,0.3971304,111350.0,111340.0,1.39744]
[1747964310307,0.32497707,111350.0,111340.0,1.39744]
[1747964310511,0.32497707,111350.0,111340.0,1.12832]
[1747964310916,0.32497707,111350.0,111340.0,1.39744]
[1747964311341,0.32497707,111350.0,111340.0,1.05744]
[1747964311549,0.33951792,111350.0,111340.0,1.05744]
[1747964313024,0.33851792,111350.0,111340.0,1.05744]
[1747964313279,0.34051792,111350.0,111340.0,1.05744]
[1747964313431,0.34051792,111350.0,111340.0,0.78832]
[1747964313627,0.33851792,111350.0,111340.0,1.05744]
[1747964313848,0.34351792,111350.0,111340.0,1.05744]
[1747964314256,0.34151792,111350.0,111340.0,1.05744]
[1747964315102,0.34451792,111350.0,111340.0,1.05744]
[1747964315777,1.03051792,111350.0,111340.0,1.05744]
[1747964323366,1.03051792,111350.0,111340.0,0.66992]
[1747964328086,1.01597707,111350.0,111340.0,0.66992]
[1747964328515,0.99487707,111350.0,111340.0,0.66992]
[1747964328716,1.01607707,111350.0,111340.0,0.66992]
[1747964329768,1.01607707,111350.0,111340.0,0.4008]
[1747964329975,1.03061792,111350.0,111340.0,0.67]
[1747964330179,1.30556446,111350.0,111340.0,0.4008]
[1747964330378,1.31556446,111350.0,111340.0,0.67]
[1747964330577,0.62956446,111350.0,111340.0,0.67]
[1747964331820,0.61956446,111350.0,111340.0,0.67]
[1747964332462,0.70148072,111350.0,111340.0,0.4008]
[1747964332632,0.70148072,111350.0,111340.0,0.67]
[1747964332835,0.61956446,111350.0,111340.0,0.67]
[1747964333047,0.34461792,111350.0,111340.0,0.67]
[1747964333342,0.61956446,111350.0,111340.0,0.67]
[1747964334111,0.62656446,111350.0,111340.0,0.4008]
[1747964334310,0.25915098,111330.0,111320.0,0.78384]
[1747964334551,0.34869654,111330.0,111320.0,0.78384]
[1747964334758,0.62364308,111330.0,111320.0,1.05304]
[1747964334926,0.34869654,111330.0,111320.0,1.05304]
[1747964336878,0.34969654,111330.0,111320.0,1.05504]
[1747964338567,0.32599654,111330.0,111320.0,1.05504]
[1747964339638,0.28815569,111330.0,111320.0,1.05504]
[1747964340436,0.28815569,111330.0,111320.0,1.44114]
[1747964340835,0.2880176,111330.0,111320.0,1.44114]
[1747964341035,0.19847204,111330.0,111320.0,1.44114]
[1747964341238,0.19847204,111330.0,111320.0,1.45184281]
[1747964342246,0.31059355,111330.0,111320.0,1.40574281]
[1747964342551,0.19847204,111330.0,111320.0,1.40574281]
[1747964342770,0.19847204,111330.0,111320.0,1.42784281]
[1747964342949,0.19847204,111330.0,111320.0,1.44954281]
[1747964343155,0.19847204,111330.0,111320.0,1.63818815]
[1747964343397,0.19847204,111330.0,111320.0,1.65615396]
[1747964343595,0.19847204,111330.0,111320.0,6.1694125]
[1747964343596,0.02794569,111330.0,111320.0,6.1694125]
[1747964343831,0.02794569,111330.0,111320.0,6.15144718]
[1747964343832,0.20759178,111330.0,111320.0,6.15144718]
[1747964344161,0.19861013,111330.0,111320.0,6.15144718]
[1747964344365,0.18962823,111330.0,111320.0,6.14074437]
[1747964344565,0.18064609,111330.0,111320.0,6.14074437]
[1747964346694,0.18064609,111330.0,111320.0,6.15505841]
[1747964346898,0.18064609,111330.0,111320.0,6.16404136]
[1747964347159,0.19861045,111330.0,111320.0,6.17302422]
[1747964347382,0.20759235,111330.0,111320.0,6.182007]
[1747964347822,0.20759235,111330.0,111320.0,6.16769296]
[1747964348255,0.20759235,111330.0,111320.0,6.15871018]
[1747964348711,0.19861045,111330.0,111320.0,6.16769296]
[1747964349098,0.18962831,111330.0,111320.0,6.15871018]
[1747964349641,0.18962831,111330.0,111320.0,5.88951018]
[1747964349872,0.18962831,111330.0,111320.0,6.15871018]
[1747964350081,0.19861029,111330.0,111320.0,6.1676928]
[1747964350333,0.01896372,111330.0,111320.0,6.16769223]
[1747964350539,0.0269457,111330.0,111320.0,6.16569223]
[1747964351007,0.00898174,111330.0,111320.0,6.16869223]
[1747964351267,0.02694303,111340.0,111330.0,0.59089187]
[1747964351505,0.03592444,111340.0,111330.0,5.18471343]
[1747964351955,0.0359242,111340.0,111330.0,5.18471343]
[1747964352176,0.22453557,111340.0,111330.0,5.17573169]
[1747964352391,0.22453629,111340.0,111330.0,5.17573169]
[1747964352608,0.22553629,111340.0,111330.0,5.18471351]
[1747964352837,0.22553629,111340.0,111330.0,5.19002709]
[1747964353036,0.04590633,111340.0,111330.0,5.19900883]
[1747964353297,0.02794335,111340.0,111330.0,5.19900883]
[1747964353481,0.03692468,111340.0,111330.0,5.19900883]
[1747964353704,0.04590609,111340.0,111330.0,5.19900883]
[1747964353914,0.02780726,111340.0,111330.0,5.19900883]
[1747964354135,0.02780734,111340.0,111330.0,5.19900883]
[1747964354319,0.02780734,111340.0,111330.0,5.18471343]
[1747964354465,0.03678875,111340.0,111330.0,5.18471343]
[1747964355086,0.03678875,111340.0,111330.0,5.18571343]
[1747964355288,0.02780734,111340.0,111330.0,5.18571343]
[1747964355519,0.03678875,111340.0,111330.0,5.18571343]
[1747964355722,0.03178875,111340.0,111330.0,5.18571351]
[1747964355918,0.20657379,111340.0,111330.0,5.17673177]
[1747964356605,0.20657387,111340.0,111330.0,5.17673177]
[1747964356944,0.20657387,111340.0,111330.0,5.17673185]
[1747964357333,0.20657387,111340.0,111330.0,5.19999513]
[1747964358060,0.19759278,111340.0,111330.0,5.19999513]
[1747964358277,0.19759278,111340.0,111330.0,5.17779513]
[1747964358502,0.17962996,111340.0,111330.0,5.1508173]
[1747964358727,0.18861129,111340.0,111330.0,5.33944569]
[1747964358962,0.20657387,111340.0,111330.0,5.37062783]
[1747964359179,0.03592468,111340.0,111330.0,5.47813711]
[1747964359387,0.02694327,111340.0,111330.0,5.48711901]
[1747964359614,0.03592468,111340.0,111330.0,5.48711901]
[1747964360135,0.04490617,111340.0,111330.0,5.48711901]
[1747964360342,0.01796194,111340.0,111330.0,5.48711901]
[1747964360777,0.02694319,111340.0,111330.0,5.48711901]
[1747964360980,0.01796194,111340.0,111330.0,5.48711901]
[1747964361125,0.02694319,111340.0,111330.0,5.48711901]
[1747964361793,0.03592452,111340.0,111330.0,5.21795901]
[1747964362035,0.01796194,111340.0,111330.0,5.89611901]
[1747964362240,0.00898085,111340.0,111330.0,5.89611901]
[1747964362401,0.01796194,111340.0,111330.0,5.89611901]
[1747964362798,0.00898085,111340.0,111330.0,5.89611901]
[1747964363281,0.19073151,111350.0,111340.0,0.59107347]
[1747964363282,0.00213707,111350.0,111340.0,0.59107347]
[1747964363488,0.00213707,111350.0,111340.0,5.18489503]
[1747964363691,0.01111719,111350.0,111340.0,5.18489503]
[1747964363862,0.02907775,111350.0,111340.0,5.18489503]